bitfinex/quotes_ETHUSD_20250213
["timestamp","ask_amount","ask_price","bid_price","bid_amount"]
[1739407230309,3.66219,2730.6,2730.4,35.281]
[1739407230611,3.69770357,2730.5,2730.4,35.0]
[1739407230790,3.69770357,2730.5,2730.4,0.28]
[1739407231497,3.69770357,2730.5,2730.4,35.28]
[1739407231900,0.03537357,2730.5,2730.4,35.28]
[1739407232484,3.73800619,2730.5,2730.4,35.28]
[1739407232679,0.07567619,2730.5,2730.4,35.28]
[1739407232904,3.73800619,2730.5,2730.4,35.28]
[1739407233112,0.07567619,2730.5,2730.4,35.28]
[1739407234189,4.47729,2730.8,2730.4,35.6203891]
[1739407234190,0.8153,2730.8,2730.4,35.6203891]
[1739407234419,0.07578345,2730.7,2730.5,3.8691]
[1739407234618,125.64032508,2731.0,2730.5,7.53132]
[1739407234929,125.64032508,2731.0,2730.6,35.0]
[1739407234930,0.07592801,2730.9,2730.6,35.0]
[1739407235230,3.73772801,2730.9,2730.6,35.0]
[1739407235514,3.73772801,2730.9,2730.6,35.3403891]
[1739407236218,0.07592801,2730.9,2730.6,35.3403891]
[1739407236585,0.07592801,2730.9,2730.7,0.3403891]
[1739407237283,0.07592801,2730.9,2730.8,35.0]
[1739407237718,3.73771801,2730.9,2730.8,35.0]
[1739407237920,7.35232826,2730.9,2730.8,35.0]
[1739407238504,3.69053826,2730.9,2730.8,35.0]
[1739407239021,3.69053826,2730.9,2730.8,35.3403891]
[1739407240210,0.07592801,2730.9,2730.8,35.3403891]
[1739407241628,3.73771801,2730.9,2730.8,35.3403891]
[1739407244292,0.07592801,2730.9,2730.8,35.3403891]
[1739407245207,3.73771801,2730.9,2730.8,35.3403891]
[1739407248334,0.07592801,2730.9,2730.8,35.3403891]
[1739407251234,3.73771801,2730.9,2730.8,35.3403891]
[1739407251434,0.07592801,2730.9,2730.8,35.3403891]
[1739407251939,0.07592801,2730.9,2730.8,39.0023191]
[1739407252137,0.07592801,2730.9,2730.8,39.2091191]
[1739407258271,3.73771801,2730.9,2730.8,35.3403891]
[1739407258433,0.07592801,2730.9,2730.8,35.6203891]
[1739407260681,3.73771801,2730.9,2730.8,35.6203891]
[1739407261171,0.07592801,2730.9,2730.8,35.6203891]
[1739407263872,0.07592801,2730.9,2730.8,0.6203891]
[1739407264388,0.07592801,2730.9,2730.8,35.6203891]
[1739407264733,0.07592801,2730.9,2730.8,39.2823191]
[1739407265573,0.07592801,2730.9,2730.8,35.6203891]
[1739407269435,0.07592801,2730.9,2730.8,0.6203891]
[1739407270074,0.07592801,2730.9,2730.8,35.6203891]
[1739407277876,7.35232826,2730.9,2730.8,35.3403891]
[1739407278079,0.7888,2730.8,2730.3,3.665]
[1739407278282,3.66246,2730.4,2729.8,0.2068]
[1739407278482,3.66276,2730.2,2729.9,3.945]
[1739407278983,0.06547962,2730.1,2729.9,3.945]
[1739407279184,3.72833962,2730.1,2730.0,35.0]
[1739407279370,3.72833962,2730.1,2730.0,35.28]
[1739407279568,4.4815721,2730.1,2730.0,35.28]
[1739407279757,3.72833962,2730.1,2730.0,35.28]
[1739407283289,3.72833962,2730.1,2730.0,35.0]
[1739407284162,0.06547962,2730.1,2730.0,35.0]
[1739407284362,3.72833962,2730.1,2730.0,35.0]
[1739407285460,0.06547962,2730.1,2730.0,35.0]
[1739407285672,4.3781373,2730.2,2730.0,35.0]
[1739407285883,0.06471967,2730.1,2730.0,35.0]
[1739407286084,3.72757967,2730.1,2730.0,35.0]
[1739407291920,3.663,2730.0,2729.9,0.28]
[1739407292088,3.7257398,2730.0,2729.9,0.28]
[1739407292284,4.62153422,2730.0,2729.9,0.28]
[1739407295123,3.7257398,2730.0,2729.9,0.28]
[1739407295619,3.7257398,2730.0,2729.5,3.67332734]
[1739407295620,3.66354,2729.6,2729.5,3.67332734]
[1739407295773,4.46644,2729.6,2729.5,0.00732734]
[1739407295977,4.52250996,2729.6,2729.5,0.00732734]
[1739407296289,5.68639705,2729.6,2729.5,0.00732734]
[1739407299440,3.66421,2729.1,2729.0,35.28]
[1739407299795,8.5200386,2729.1,2729.0,35.0]
[1739407300017,3.66488,2728.6,2728.5,0.28]
[1739407300408,3.71954251,2728.6,2728.5,0.28]
[1739407302812,0.05466251,2728.6,2728.5,4.15181]
[1739407303008,0.05466251,2728.6,2728.5,7.81881]
[1739407303210,16.21394,2729.3,2728.8,0.2068]
[1739407303516,0.05275235,2729.2,2728.8,3.8738]
[1739407303818,3.66422,2729.1,2728.8,0.2068]
[1739407304021,3.66448,2728.9,2728.5,0.4868]
[1739407304230,7.32906,2728.9,2728.6,3.0]
[1739407304413,3.66485,2728.7,2728.5,0.28]
[1739407304620,3.66488,2728.6,2728.5,0.28]
[1739407304853,3.71734893,2728.6,2728.5,0.28]
[1739407305133,0.05246893,2728.6,2728.5,0.28]
[1739407306536,3.71734893,2728.6,2728.5,0.28]
[1739407307538,4.43883959,2728.6,2728.5,0.28]
[1739407309138,0.77395959,2728.6,2728.5,0.28]
[1739407309441,0.05246893,2728.6,2728.5,0.28]
[1739407309814,3.66453,2728.9,2728.5,0.28]
[1739407310001,3.66473,2728.8,2728.5,0.28]
[1739407310207,4.40155279,2728.8,2728.5,0.28]
[1739407310421,0.05251625,2728.7,2728.5,0.28]
[1739407310813,0.73682279,2728.8,2728.5,0.28]
[1739407311016,0.05241045,2728.6,2728.5,0.28]
[1739407311229,7.51468179,2729.0,2728.5,0.28]
[1739407311439,0.0524292,2728.6,2728.5,0.28]
[1739407311644,0.72097116,2728.9,2728.5,0.28]
[1739407312146,0.05264079,2728.8,2728.5,0.28]
[1739407312864,0.05264079,2728.8,2728.6,0.2068]
[1739407313023,0.05264079,2728.8,2728.6,3.87166]
[1739407313210,0.05264079,2728.8,2728.6,0.2068]
[1739407313410,4.45946,2729.2,2728.6,0.2068]
[1739407313635,0.05241679,2728.7,2728.5,0.28]
[1739407313834,3.66457,2728.9,2728.5,0.28]
[1739407314038,0.05237009,2728.6,2728.5,0.28]
[1739407314562,3.66462,2728.8,2728.5,0.28]
[1739407314762,0.0524759,2728.7,2728.5,0.28]
[1739407314921,0.72221814,2729.0,2728.5,0.28]
[1739407315124,3.66469,2728.8,2728.5,0.28]
[1739407315325,0.052535,2728.7,2728.5,0.28]
[1739407315627,3.92384535,2728.9,2728.5,0.28]
[1739407315824,0.05181394,2728.6,2728.5,3.94501]
[1739407316034,17.911914,2729.3,2728.5,3.94501]
[1739407316035,16.21402,2729.3,2728.7,3.66466]
[1739407316228,19.87804,2729.3,2728.7,3.66466]
[1739407316436,2.066494,2729.2,2728.8,3.66461]
[1739407316751,12.55,2729.3,2729.1,0.2068]
[1739407317545,0.05226323,2729.2,2729.1,0.2068]
[1739407317742,12.55,2729.3,2729.1,3.8728]
[1739407317972,0.05226323,2729.2,2729.1,7.53694]
[1739407318355,12.55,2729.3,2729.1,7.53694]
[1739407318583,0.05214991,2729.2,2729.1,7.53694]
[1739407318970,12.55,2729.3,2729.1,7.53694]
[1739407319173,0.05216062,2729.2,2729.1,7.53694]
[1739407319642,0.05216062,2729.2,2729.1,3.8728]
[1739407319843,12.55,2729.3,2729.1,3.8728]
[1739407320062,0.05216062,2729.2,2729.1,3.8728]
[1739407320380,12.55,2729.3,2729.1,3.8728]
[1739407320594,12.55,2729.3,2729.2,35.0]
[1739407321079,12.55,2729.3,2729.1,3.8728]
[1739407321080,12.55,2729.3,2729.1,7.28817]
[1739407321282,12.60226639,2729.3,2729.1,7.28817]
[1739407321584,12.60226639,2729.3,2729.1,3.624]
[1739407323097,12.60226639,2729.3,2729.1,3.66419]
[1739407324418,12.60226639,2729.3,2729.0,3.66427]
[1739407324615,12.60226639,2729.3,2729.2,3.66407]
[1739407324790,12.60226639,2729.3,2729.2,6.66407]
[1739407324994,12.60226639,2729.3,2729.2,41.66407]
[1739407325185,12.55,2729.3,2729.2,41.66407]
[1739407325818,12.60257787,2729.3,2729.2,41.66407]
[1739407326627,12.55,2729.3,2729.2,41.66407]
[1739407326929,12.55733455,2730.0,2729.8,3.6632]
[1739407327229,12.55733455,2730.0,2729.9,3.94313]
[1739407327380,12.55733455,2730.0,2729.9,10.60813]
[1739407327581,12.55733455,2730.0,2729.9,45.60813]
[1739407328287,12.61099686,2730.0,2729.9,41.945]
[1739407328686,12.61099686,2730.0,2729.9,45.60813]
[1739407329421,12.61099686,2730.0,2729.9,41.945]
[1739407329796,12.61099686,2730.0,2729.9,45.60813]
[1739407330117,12.55733455,2730.0,2729.9,38.0]
[1739407330290,13.86485341,2730.0,2729.9,0.28]
[1739407330494,17.52785341,2730.0,2729.9,0.28]
[1739407331514,13.86485341,2730.0,2729.9,0.28]
[1739407332015,17.52785341,2730.0,2729.9,0.28]
[1739407332719,17.52785341,2730.0,2729.7,35.0]
[1739407332924,3.66314,2729.9,2729.8,0.28]
[1739407333221,3.71455254,2729.9,2729.8,0.28]
[1739407333922,0.05141254,2729.9,2729.8,0.28]
[1739407335384,0.05141254,2729.9,2729.8,3.94327]
[1739407335635,0.05141254,2729.9,2729.8,0.28]
[1739407336405,0.05141254,2729.9,2729.8,35.28]
[1739407340940,3.71454254,2729.9,2729.8,35.28]
[1739407341243,0.05141254,2729.9,2729.8,35.28]
[1739407342329,0.42725018,2729.9,2729.8,35.0]
[1739407342548,3.66327,2729.8,2729.7,0.28]
[1739407342749,0.05108442,2729.8,2729.5,1.81990814]
[1739407342904,0.05108442,2729.8,2728.8,7.32903]
[1739407342905,3.66388,2729.4,2728.8,7.32903]
[1739407343109,0.05048887,2729.3,2728.9,6.946]
[1739407343550,0.05048887,2729.3,2729.1,3.0]
[1739407343912,0.05048887,2729.3,2729.0,3.0]
[1739407344448,3.71442887,2729.3,2729.2,35.0]
[1739407344748,3.71442887,2729.3,2729.2,35.28]
[1739407347432,3.71442887,2729.3,2729.2,35.0]
[1739407347628,17.08184276,2729.3,2729.2,35.0]
[1739407348158,3.66489,2728.6,2727.9,5.55269034]
[1739407348311,3.66474,2728.7,2728.0,3.947]
[1739407348641,3.66504,2728.5,2728.1,35.0]
[1739407348940,0.04882725,2728.4,2728.1,35.28]
[1739407349128,0.04882725,2728.4,2728.1,38.94555]
[1739407349329,3.66496,2728.6,2728.1,35.28]
[1739407349535,3.66515,2728.4,2728.1,35.28]
[1739407349738,0.04872142,2728.3,2728.1,35.28]
[1739407349944,3.66515,2728.4,2728.1,35.28]
[1739407350146,0.04872142,2728.3,2728.1,35.0]
[1739407350320,3.66515,2728.4,2728.2,0.28]
[1739407350519,0.04856607,2728.3,2728.2,0.28]
[1739407351021,3.66517,2728.4,2728.2,35.28]
[1739407351328,0.04856607,2728.3,2728.2,35.28]
[1739407352755,3.71384607,2728.3,2728.2,35.28]
[1739407353250,0.04856607,2728.3,2728.2,35.28]
[1739407353445,0.04856607,2728.3,2728.2,35.0]
[1739407353642,0.04856607,2728.3,2728.2,35.28]
[1739407357556,0.04856607,2728.3,2728.2,41.94542]
[1739407357756,3.66428,2729.1,2728.5,3.66493]
[1739407358056,12.59672484,2729.0,2728.6,3.0]
[1739407358592,12.59672484,2729.0,2728.6,6.667]
[1739407358751,16.26113484,2729.0,2728.6,6.667]
[1739407358952,12.59672484,2729.0,2728.6,6.667]
[1739407359164,3.66471,2728.8,2728.3,3.66521]
[1739407359522,3.71127746,2728.7,2728.4,0.28]
[1739407359653,3.66509,2728.5,2728.4,0.28]
[1739407359852,3.66528,2728.3,2728.2,35.0]
[1739407360152,4.54410653,2728.3,2728.2,35.28]
[1739407360703,4.54410653,2728.3,2728.2,35.0]
[1739407360855,6.62004018,2728.3,2728.2,35.0]
[1739407361359,19.17004018,2728.3,2728.2,35.0]
[1739407363355,3.66555,2728.1,2728.0,0.28]
[1739407363557,3.66555,2728.1,2727.9,0.0670322]
[1739407363558,3.66568,2728.0,2727.9,0.3470322]
[1739407363758,4.07574395,2728.0,2727.9,35.3470322]
[1739407365191,4.89544395,2728.0,2727.9,0.0670322]
[1739407366557,17.44544395,2728.0,2727.9,0.0670322]
[1739407367758,17.99544395,2728.0,2727.9,0.0670322]
[1739407372531,3.66676,2727.2,2727.1,0.005]
[1739407372822,16.2586582,2727.2,2727.1,0.005]
[1739407372991,16.2586582,2727.2,2727.1,35.005]
[1739407373393,16.2586582,2727.2,2727.1,0.005]
[1739407373987,16.2586582,2727.2,2727.1,35.005]
[1739407374186,16.85446575,2727.2,2727.1,35.005]
[1739407374422,17.62466575,2727.2,2727.1,0.005]
[1739407376534,18.17466575,2727.2,2727.1,0.005]
[1739407381169,12.5918982,2727.2,2727.1,0.005]
[1739407381682,12.5918982,2727.2,2727.1,35.005]
[1739407383088,12.5918982,2727.2,2727.1,38.67189]
[1739407383295,12.3430982,2727.2,2727.1,35.005]
[1739407383576,12.3012,2727.2,2727.1,35.005]
[1739407384259,12.34159081,2727.2,2727.1,35.005]
[1739407387345,12.09159081,2727.2,2727.1,35.005]
[1739407388651,15.75835081,2727.2,2727.1,35.005]
[1739407388849,15.75835081,2727.2,2727.1,0.284]
[1739407389276,12.09159081,2727.2,2727.1,0.284]
[1739407392866,12.09159081,2727.2,2727.1,35.284]
[1739407397085,12.09159081,2727.2,2727.1,38.95089]
[1739407397489,12.09159081,2727.2,2727.1,35.284]
[1739407398119,12.09159081,2727.2,2727.1,38.95089]
[1739407398266,12.09159081,2727.2,2727.1,35.284]
[1739407398463,12.0512,2727.2,2727.1,35.284]
[1739407400120,12.09160751,2727.2,2727.1,35.284]
[1739407400315,15.75836751,2727.2,2727.1,0.284]
[1739407401517,12.09160751,2727.2,2727.1,0.284]
[1739407408035,12.09160751,2727.2,2727.1,3.95089]
[1739407408515,12.09160751,2727.2,2727.1,0.284]
[1739407409529,12.09160751,2727.2,2727.1,3.95089]
[1739407410319,12.09160751,2727.2,2727.1,0.284]
[1739407411753,12.09160751,2727.2,2727.1,3.95089]
[1739407412118,12.0512,2727.2,2727.1,3.95089]
[1739407412348,12.0512,2727.2,2727.1,6.95089]
[1739407415056,4.71444,2727.2,2727.1,6.95089]
[1739407415261,1e-05,2727.2,2727.1,10.78579814]
[1739407415463,0.24325,2727.2,2727.1,20.27579814]
[1739407415644,5.20657221,2728.7,2728.1,7.33098]
[1739407415980,1.84,2728.6,2728.2,0.279]
[1739407416169,5.50495,2728.6,2728.2,0.279]
[1739407416373,1.84,2728.6,2728.2,0.279]
[1739407416566,2.54465722,2728.6,2728.2,0.279]
[1739407417975,6.20956722,2728.6,2728.2,0.279]
[1739407418778,6.20953722,2728.6,2728.2,0.279]
[1739407419477,3.66502,2728.5,2728.2,0.279]
[1739407419684,7.33014,2728.5,2728.2,0.279]
[1739407419879,3.66502,2728.5,2728.2,0.279]
[1739407420271,1.84,2728.4,2728.2,0.279]
[1739407421682,1.84,2728.4,2728.0,3.668]
[1739407421887,3.66532,2728.3,2727.9,3.0]
[1739407422186,2.756993,2728.4,2728.1,0.279]
[1739407422768,6.422213,2728.4,2728.1,0.279]
[1739407423369,2.756993,2728.4,2728.1,0.279]
[1739407423571,1.84,2728.4,2728.1,0.279]
[1739407424205,5.50524,2728.4,2728.1,0.279]
[1739407424874,3.66529,2728.3,2728.1,0.279]
[1739407426210,5.50552,2728.2,2727.6,3.66611]
[1739407426503,1.84,2728.2,2727.8,3.0]
[1739407427005,1.84,2728.2,2727.8,6.66594]
[1739407427725,2.390529,2728.2,2727.3,1.81990814]
[1739407427866,3.66568,2728.0,2727.9,0.279]
[1739407428072,5.50568,2728.0,2727.9,0.279]
[1739407430710,3.66626,2727.6,2727.1,3.005]
[1739407430907,5.50645,2727.5,2727.2,3.948]
[1739407431122,1.84,2727.5,2727.2,3.948]
[1739407431534,1.84,2727.5,2727.3,0.279]
[1739407431732,1.84,2727.5,2727.2,3.669]
[1739407431933,1.84,2727.5,2727.4,0.279]
[1739407433109,1.84,2727.5,2727.4,6.94549]
[1739407433358,3.45296092,2728.9,2727.4,6.94549]
[1739407433359,1.84,2728.4,2728.2,3.66536]
[1739407433566,1.84,2728.5,2728.3,0.279]
[1739407433883,5.50476,2728.7,2728.3,0.279]
[1739407434007,3.66494,2728.6,2728.3,0.279]
[1739407435546,3.66503,2728.5,2728.3,0.279]
[1739407436063,5.50487,2728.7,2728.3,0.279]
[1739407437143,1.84,2728.7,2728.3,0.279]
[1739407437356,3.66488,2728.6,2728.3,0.279]
[1739407438078,1.84,2728.5,2728.3,0.279]
[1739407438677,5.50509,2728.5,2728.3,0.279]
[1739407439255,1.84,2728.5,2728.3,0.279]
[1739407439652,0.03919568,2728.4,2728.3,0.279]
[1739407440263,0.03919568,2728.4,2728.3,35.279]
[1739407440680,5.50505,2728.5,2728.3,35.279]
[1739407440972,1.84,2728.5,2728.3,35.279]
[1739407441737,1.84,2728.5,2728.4,10.33215]
[1739407443168,1.84,2728.5,2728.4,6.667]
[1739407443478,1.84,2728.5,2728.4,10.33215]
[1739407443696,1.87986536,2728.5,2728.4,10.33215]
[1739407443896,1.87986536,2728.5,2728.4,45.33215]
[1739407444479,1.84,2728.5,2728.4,41.946]
[1739407444893,1.87994343,2728.5,2728.4,41.946]
[1739407446598,1.87994343,2728.5,2728.4,41.667]
[1739407446804,5.54495343,2728.5,2728.4,38.946]
[1739407447092,5.5449292,2728.5,2728.4,0.279]
[1739407447795,3.66532,2728.3,2728.1,3.0]
[1739407447999,3.66532,2728.3,2728.2,0.279]
[1739407448921,3.7050249,2728.3,2728.1,3.0]
[1739407449225,3.66555,2728.1,2728.0,35.0]
[1739407449430,5.50555,2728.1,2728.0,35.0]
[1739407449626,5.54495981,2728.1,2728.0,35.279]
[1739407450307,5.54495981,2728.1,2728.0,35.62161134]
[1739407451712,5.50555,2728.1,2728.0,35.62161134]
[1739407451921,1.84,2728.1,2728.0,35.62161134]
[1739407452089,1.87934249,2728.1,2728.0,35.62161134]
[1739407452814,1.84,2728.1,2728.0,35.62161134]
[1739407454126,1.84,2728.1,2728.0,0.62161134]
[1739407454323,5.50555,2728.1,2728.0,0.62161134]
[1739407454528,5.5447094,2728.1,2728.0,35.62161134]
[1739407454727,5.5447094,2728.1,2728.0,35.34261134]
[1739407454929,6.3757094,2728.1,2728.0,35.62161134]
[1739407455105,6.33655,2728.1,2728.0,35.62161134]
[1739407455306,6.3757094,2728.1,2728.0,35.62161134]
[1739407455506,2.7101594,2728.1,2728.0,35.62161134]
[1739407455711,1.8791594,2728.1,2728.0,35.62161134]
[1739407456514,5.5447094,2728.1,2728.0,35.62161134]
[1739407457512,5.5447094,2728.1,2728.0,0.62161134]
[1739407458023,5.5447094,2728.1,2728.0,35.62161134]
[1739407458433,5.50555,2728.1,2728.0,35.62161134]
[1739407458924,5.50555,2728.1,2728.0,35.34261134]
[1739407460925,6.502619,2728.1,2728.0,35.34261134]
[1739407461093,7.317219,2728.1,2728.0,35.34261134]
[1739407461295,7.35635685,2728.1,2728.0,35.34261134]
[1739407461806,7.35635685,2728.1,2727.1,3.67177]
[1739407461807,3.66641,2727.5,2727.1,0.005]
[1739407462003,1.84,2727.4,2727.2,3.948]
[1739407462207,1.87839688,2727.4,2727.3,35.0]
[1739407462736,1.84,2727.4,2727.3,35.0]
[1739407463110,1.87839688,2727.4,2727.3,35.0]
[1739407463312,5.54488688,2727.4,2727.3,35.279]
[1739407463512,5.54488688,2727.4,2727.3,35.82723387]
[1739407465419,5.54488688,2727.4,2727.3,0.54823387]
[1739407465612,5.54488688,2727.4,2727.3,0.82723387]
[1739407467153,5.54488688,2727.4,2727.3,0.279]
[1739407469415,5.54488688,2727.4,2727.3,35.279]
[1739407470142,5.54488688,2727.4,2727.3,35.82723387]
[1739407470360,6.33118688,2727.4,2727.3,35.82723387]
[1739407470535,7.40363594,2727.4,2727.3,0.54823387]
[1739407472045,7.40363594,2727.4,2727.2,0.54823387]
[1739407472240,3.66663,2727.3,2727.2,0.54823387]
[1739407472549,3.70467288,2727.3,2727.2,0.54823387]
[1739407473849,3.66676,2727.2,2727.1,0.55323387]
[1739407474024,3.70467288,2727.3,2727.1,0.55323387]
[1739407474230,3.70330716,2727.2,2727.1,0.55323387]
[1739407474414,3.66676,2727.2,2727.1,0.55323387]
[1739407474616,3.70330716,2727.2,2727.1,0.55323387]
[1739407475555,3.70330716,2727.2,2727.1,0.89539441]
[1739407476556,5.54330716,2727.2,2727.1,0.89539441]
[1739407477856,6.54293088,2727.2,2727.1,35.89539441]
[1739407478029,6.54293088,2727.2,2727.1,0.89539441]
[1739407479538,7.36573088,2727.2,2727.1,0.89539441]
[1739407479826,7.36573088,2727.2,2727.1,0.34716054]
[1739407480826,7.36573088,2727.2,2727.1,0.005]
[1739407481352,7.36573088,2727.2,2727.1,0.34739675]
[1739407483358,7.91573088,2727.2,2727.1,0.34739675]
[1739407488070,7.91573088,2727.2,2727.1,0.005]
[1739407493402,7.93073088,2727.2,2727.1,0.005]
[1739407494267,4.22439,2727.1,2727.0,0.1]
[1739407494467,10.1349007,2727.1,2727.0,0.1]
[1739407497425,10.1349007,2727.1,2725.9,6.66851]
[1739407497426,4.21703,2727.0,2726.9,2.69e-06]
[1739407497704,4.21703,2727.0,2725.8,0.279]
[1739407497705,0.832,2726.6,2725.8,0.279]
[1739407497876,3.66824,2726.1,2725.8,0.279]
[1739407498076,3.66865,2725.8,2725.5,3.0]
[1739407498278,1.84,2725.7,2725.6,0.279]
[1739407498595,5.50878,2725.7,2725.5,0.279]
[1739407498790,3.66891,2725.6,2725.5,0.279]
[1739407498990,3.66905,2725.5,2725.4,3.671]
[1739407499198,3.66891,2725.6,2725.4,3.95]
[1739407499373,5.50885,2725.7,2725.4,38.95]
[1739407499793,3.66894,2725.6,2725.4,38.95]
[1739407499991,3.66905,2725.5,2725.4,35.279]
[1739407500199,1.84,2725.5,2725.4,35.279]
[1739407502915,1.84,2725.5,2725.4,38.94818]
[1739407503120,1.84,2725.5,2725.4,41.94818]
[1739407503279,1.84,2726.3,2725.8,3.66855]
[1739407503592,1.84,2726.3,2725.8,3.66854]
[1739407503786,1.84,2726.3,2725.5,3.0]
[1739407504108,1.84,2726.3,2726.1,3.6682]
[1739407504308,1.84,2726.2,2726.1,3.66824]
[1739407504477,1.84,2726.2,2726.1,7.33824]
[1739407504951,1.84,2726.2,2726.1,42.33824]
[1739407505334,1.84,2726.2,2726.1,38.67]
[1739407508082,5.5081,2726.2,2726.1,38.67]
[1739407508279,6.503624,2726.2,2726.1,0.279]
[1739407508493,2.835524,2726.2,2725.4,3.66916]
[1739407508783,2.835524,2726.2,2725.2,1.81990814]
[1739407508784,3.66866,2725.8,2725.5,35.279]
[1739407508980,4.48478,2725.9,2725.5,0.279]
[1739407509199,3.66906,2725.5,2725.0,3.66965]
[1739407509485,3.66906,2725.5,2725.1,38.951]
[1739407509738,5.50919,2725.4,2725.1,35.279]
[1739407509950,5.50919,2725.4,2725.2,0.279]
[1739407510406,5.50919,2725.4,2725.2,0.34287681]
[1739407510606,3.66933,2725.3,2725.2,0.34287681]
[1739407510806,5.50933,2725.3,2725.2,0.34287681]
[1739407511022,6.4638726,2725.3,2725.2,0.34287681]
[1739407511307,6.4638726,2725.3,2724.6,0.279]
[1739407511308,3.67011,2724.8,2724.6,0.279]
[1739407511497,5.51021,2724.7,2724.5,0.279]
[1739407511822,5.51021,2724.7,2724.2,3.673]
[1739407512003,3.67035,2724.6,2724.4,0.279]
[1739407512315,5.51021,2724.7,2724.4,0.279]
[1739407512521,1.84,2724.7,2724.4,0.279]
[1739407513221,5.51024,2724.7,2724.4,0.279]
[1739407513786,1.84,2724.7,2724.4,0.279]
[1739407514907,1.84,2724.7,2724.5,3.67033]
[1739407515105,1.84,2724.7,2724.4,0.279]
[1739407515313,3.66986,2724.9,2724.4,0.279]
[1739407515481,4.93310609,2724.9,2724.4,0.279]
[1739407515686,1.84,2725.0,2724.4,0.279]
[1739407515910,1.84,2725.0,2724.8,3.66997]
[1739407516295,1.84,2725.0,2724.6,3.67022]
[1739407517018,1.84,2725.0,2724.7,3.67008]
[1739407517208,1.84,2725.2,2724.8,3.672]
[1739407517424,1.84,2725.7,2725.4,3.66908]
[1739407517593,1.84,2725.7,2725.5,3.94797]
[1739407518641,1.84,2726.2,2725.5,0.279]
[1739407518792,1.84,2726.2,2725.7,3.6687]
[1739407519112,1.84,2726.5,2725.9,3.0]
[1739407519308,1.84,2726.6,2725.9,3.0]
[1739407519509,1.84,2726.6,2725.6,3.03667984]
[1739407519722,1.84,2726.6,2726.3,3.66784]
[1739407519909,2.024,2726.6,2726.4,0.279]
[1739407522716,2.024,2726.6,2725.9,3.66845]
[1739407522717,3.6677,2726.5,2725.9,3.0]
[1739407523044,2.024,2726.6,2726.0,7.61737]
[1739407523240,5.69159,2726.6,2726.0,3.94737]
[1739407523404,2.024,2726.6,2726.0,3.94737]
[1739407523609,2.024,2726.6,2726.1,3.66823]
[1739407524045,2.024,2726.6,2726.1,4.0097479]
[1739407524205,4.23276092,2726.4,2725.7,0.278]
[1739407524541,3.66855,2725.9,2725.7,0.278]
[1739407524729,6.28844,2725.8,2725.7,0.278]
[1739407525641,9.74140092,2725.8,2725.7,0.278]
[1739407525828,3.66951,2725.2,2724.6,3.67022]
[1739407526030,1.84,2725.1,2724.7,3.95]
[1739407526410,3.66976,2725.0,2724.7,3.95]
[1739407527020,7.3396,2725.0,2724.7,3.95]
[1739407527316,3.66976,2725.0,2724.7,3.95]
[1739407527556,5.50969,2725.1,2724.7,3.95]
[1739407527942,1.84,2725.1,2724.7,3.95]
[1739407528336,3.6698,2725.0,2724.7,3.95]
[1739407528540,1.84,2725.1,2724.7,3.95]
[1739407528541,5.50966,2725.1,2724.7,3.95]
[1739407529244,6.139246,2725.1,2724.7,3.95]
[1739407529472,3.6698,2725.0,2724.7,3.95]
[1739407530076,1.84,2724.9,2724.7,3.95]
[1739407531162,1.84,2724.9,2724.7,3.672]
[1739407531502,5.50986,2724.9,2724.6,0.278]
[1739407532201,3.67004,2724.8,2724.4,3.0]
[1739407532707,3.67004,2724.8,2724.5,0.278]
[1739407532861,3.67013,2724.7,2724.5,0.278]
[1739407533412,1.84,2724.6,2724.5,0.278]
[1739407533613,5.51026,2724.6,2724.5,0.278]
[1739407534255,10.098644,2724.6,2724.2,3.278]
[1739407534446,6.428294,2724.6,2724.2,0.278]
[1739407534689,3.67047,2724.5,2724.1,0.278]
[1739407534998,1.84,2724.4,2724.1,0.278]
[1739407537543,1.84,2724.4,2724.1,0.61967964]
[1739407538742,1.84,2724.4,2724.3,3.67066]
[1739407538950,1.84,2724.9,2724.2,3.67079]
[1739407539092,1.84,2724.9,2724.4,3.67051]
[1739407539297,6.2596416,2724.9,2724.4,3.67051]
[1739407539898,1.84,2724.9,2724.5,3.67026]
[1739407540998,5.50988,2724.9,2724.3,7.34356]
[1739407541200,1.84,2724.9,2724.6,0.34167964]
[1739407541753,1.84,2724.9,2724.6,4.01190964]
[1739407541952,1.84,2724.9,2724.6,0.34167964]
[1739407542155,5.50993,2724.9,2724.6,0.34167964]
[1739407542443,3.67001,2724.8,2724.6,0.34167964]
[1739407542608,4.588004,2724.8,2724.6,0.34167964]
[1739407542811,0.917994,2724.8,2724.4,4.01211964]
[1739407543007,1.84,2724.9,2724.4,4.01211964]
[1739407543234,1.84,2724.9,2724.6,3.67018]
[1739407543410,1.84,2724.9,2724.7,3.672]
[1739407544333,2.390973,2724.9,2724.4,0.34167964]
[1739407544544,3.67028,2724.6,2724.0,3.67097]
[1739407544832,3.67042,2724.5,2724.4,0.278]
[1739407545037,5.51042,2724.5,2724.4,0.278]
[1739407545537,6.51017,2724.5,2724.4,0.278]
[1739407545922,6.51017,2724.5,2724.2,0.278]
[1739407546124,1.84,2724.5,2724.2,0.278]
[1739407546302,1.84,2724.5,2724.2,0.61980311]
[1739407546717,5.51048,2724.5,2724.2,0.61980311]
[1739407546904,5.51048,2724.5,2724.2,0.278]